{"text_format":"1","workbook":"xlsx","n_sheets":19,"sheets":["Consolidé","Factures Réalisées","Facturation","calendrier","Contrat Modele","Contrat DEJAX","Contrat BESOMBES","janvier 2022","février 2022","mars 2022","avril 2022","mai 2022","juin 2022","juillet 2022","août 2022","septembre 2022","octobre 2022","novembre 2022","décembre 2022"],"not_rendered":{"charts":0,"images":1,"macros":1,"external_links":1,"defined_names":14,"comments":0,"pivot_tables":0},"unopened":[],"bounds":{"document_bytes":16777216,"sheet_cells":100000,"rows_first":2000,"rows_last":500,"rows_between":2000,"halvings":0,"cell_chars":16384,"cell_head_chars":4096},"cells_cut":0,"cells_raw":0,"read":"whole","date_system":"1900"}

{"sheet":"Consolidé","index":0,"n_rows":38,"n_cols":52,"rows_kept":38,"cut":false,"hidden":false,"merged":[[1,33,1,35],[1,37,1,39],[1,41,1,43],[1,45,1,47],[1,1,1,3],[1,5,1,7],[1,9,1,11],[1,13,1,15],[1,17,1,19],[1,21,1,23],[16,1,16,3],[16,5,16,9],[16,11,16,15],[16,17,16,21],[1,49,1,51],[8,1,8,3],[8,5,8,7],[8,9,8,11],[8,13,8,15],[8,17,8,19],[8,21,8,23],[8,25,8,27],[8,29,8,31],[8,33,8,35],[1,25,1,27],[1,29,1,31],[8,37,8,39],[8,41,8,43],[8,45,8,47],[8,49,8,51],[13,1,14,21],[19,20,19,21],[17,5,17,6],[17,8,17,9],[17,11,17,12],[17,14,17,15],[17,17,17,18],[17,20,17,21],[19,5,19,6],[19,8,19,9],[19,11,19,12],[19,14,19,15],[19,17,19,18],[20,5,20,6],[21,5,21,6],[21,8,21,9],[21,11,21,12],[21,14,21,15],[21,20,21,21],[25,1,26,21],[28,1,28,3],[28,5,28,6],[28,8,28,13],[28,15,28,18],[21,17,21,18],[29,17,29,18],[31,5,31,6],[34,1,34,3],[34,5,34,6],[34,8,34,10],[35,5,36,6],[37,5,37,6],[37,8,37,10],[29,5,29,6],[29,15,29,16]]}
[]
[null,"janvier 2022",null,null,null,"février 2022",null,null,null,"mars 2022",null,null,null,"avril 2022",null,null,null,"mai 2022",null,null,null,"juin 2022",null,null,null,"juillet 2022",null,null,null,"août 2022",null,null,null,"septembre 2022",null,null,null,"octobre 2022",null,null,null,"novembre 2022",null,null,null,"décembre 2022",null,null,null,"Totaux 2022"]
[null,"CA Global","Marge WOW","Marge SJTC",null,"CA Global","Marge WOW","Marge SJTC",null,"CA Global","Marge WOW","Marge SJTC",null,"CA Global","Marge WOW","Marge SJTC",null,"CA Global","Marge WOW","Marge SJTC",null,"CA Global","Marge WOW","Marge SJTC",null,"CA Global","Marge WOW","Marge SJTC",null,"CA Global","Marge WOW","Marge SJTC",null,"CA Global","Marge WOW","Marge SJTC",null,"CA Global","Marge WOW","Marge SJTC",null,"CA Global","Marge WOW","Marge SJTC",null,"CA Global","Marge WOW","Marge SJTC",null,"CA Global","Marge WOW","Marge SJTC"]
[]
["Free-Lance",{"$f":"'janvier 2022'!Y8","v":0},{"$f":"'janvier 2022'!Z8","v":0},{"$f":"'janvier 2022'!AA8","v":0},null,{"$f":"'février 2022'!Y9","v":21240},{"$f":"'février 2022'!Z9","v":4140},{"$f":"'février 2022'!AA9","v":2484},null,{"$f":"'mars 2022'!Y8","v":0},{"$f":"'mars 2022'!Z8","v":0},{"$f":"'mars 2022'!AA8","v":0},null,{"$f":"'avril 2022'!Y8","v":0},{"$f":"'avril 2022'!Z8","v":0},{"$f":"'avril 2022'!AA8","v":0},null,{"$f":"'mai 2022'!Y8","v":0},{"$f":"'mai 2022'!Z8","v":0},{"$f":"'mai 2022'!AA8","v":0},null,{"$f":"'juin 2022'!Y8","v":0},{"$f":"'juin 2022'!Z8","v":0},{"$f":"'juin 2022'!AA8","v":0},null,{"$f":"'juillet 2022'!Y8","v":0},{"$f":"'juillet 2022'!Z8","v":0},{"$f":"'juillet 2022'!AA8","v":0},null,{"$f":"'août 2022'!Y8","v":0},{"$f":"'août 2022'!Z8","v":0},{"$f":"'août 2022'!AA8","v":0},null,{"$f":"'septembre 2022'!Y8","v":0},{"$f":"'septembre 2022'!Z8","v":0},{"$f":"'septembre 2022'!AA8","v":0},null,{"$f":"'octobre 2022'!Y8","v":0},{"$f":"'octobre 2022'!Z8","v":0},{"$f":"'octobre 2022'!AA8","v":0},null,{"$f":"'novembre 2022'!Y8","v":0},{"$f":"'novembre 2022'!Z8","v":0},{"$f":"'novembre 2022'!AA8","v":0},null,{"$f":"'décembre 2022'!Y8","v":0},{"$f":"'décembre 2022'!Z8","v":0},{"$f":"'décembre 2022'!AA8","v":0},null,{"$f":"AT5+AP5+AL5+AH5+AD5+Z5+V5+R5+N5+J5+F5+B5","v":21240},{"$f":"AU5+AQ5+AM5+AI5+AE5+AA5+W5+S5+O5+K5+G5+C5","v":4140},{"$f":"AV5+AR5+AN5+AJ5+AF5+AB5+X5+T5+P5+L5+H5+D5","v":2484}]
[]
["Recrutement",{"$f":"'janvier 2022'!Q12","v":0},{"$f":"'janvier 2022'!R12","v":0},{"$f":"'janvier 2022'!S12","v":0},null,{"$f":"'février 2022'!Q15","v":28780},{"$f":"'février 2022'!R15","v":5756},{"$f":"'février 2022'!S15","v":23024},null,{"$f":"'mars 2022'!Q12","v":0},{"$f":"'mars 2022'!R12","v":0},{"$f":"'mars 2022'!S12","v":0},null,{"$f":"'avril 2022'!Q12","v":0},{"$f":"'avril 2022'!R12","v":0},{"$f":"'avril 2022'!S12","v":0},null,{"$f":"'mai 2022'!Q12","v":0},{"$f":"'mai 2022'!R12","v":0},{"$f":"'mai 2022'!S12","v":0},null,{"$f":"'juin 2022'!Q12","v":0},{"$f":"'juin 2022'!R12","v":0},{"$f":"'juin 2022'!S12","v":0},null,{"$f":"'juillet 2022'!Q12","v":0},{"$f":"'juillet 2022'!R12","v":0},{"$f":"'juillet 2022'!S12","v":0},null,{"$f":"'août 2022'!Q12","v":0},{"$f":"'août 2022'!R12","v":0},{"$f":"'août 2022'!S12","v":0},null,{"$f":"'septembre 2022'!Q12","v":0},{"$f":"'septembre 2022'!R12","v":0},{"$f":"'septembre 2022'!S12","v":0},null,{"$f":"'octobre 2022'!Q12","v":0},{"$f":"'octobre 2022'!R12","v":0},{"$f":"'octobre 2022'!S12","v":0},null,{"$f":"'novembre 2022'!Q12","v":0},{"$f":"'novembre 2022'!R12","v":0},{"$f":"'novembre 2022'!S12","v":0},null,{"$f":"'décembre 2022'!Q12","v":0},{"$f":"'décembre 2022'!R12","v":0},{"$f":"'décembre 2022'!S12","v":0},null,{"$f":"AT7+AP7+AL7+AH7+AD7+Z7+V7+R7+N7+J7+F7+B7","v":28780},{"$f":"AU7+AQ7+AM7+AI7+AE7+AA7+W7+S7+O7+K7+G7+C7","v":5756},{"$f":"AV7+AR7+AN7+AJ7+AF7+AB7+X7+T7+P7+L7+H7+D7","v":23024}]
["facture réalisées"]
["Previsionnel","Prévi Contrat comm janvier 2022",null,null,null,"Prévi Contrat comm février 2022",null,null,null,"Prévi Contrat comm mars 2022",null,null,null,"Prévi Contrat comm avril 2022",null,null,null,"Prévi Contrat comm mai 2022",null,null,null,"Prévi Contrat comm juin 2022",null,null,null,"Prévi Contrat comm juillet 2022",null,null,null,"Prévi Contrat comm août 2022",null,null,null,"Prévi Contrat comm septembre 2022",null,null,null,"Prévi Contrat comm octobre 2022",null,null,null,"Prévi Contrat comm novembre 2022",null,null,null,"Prévi Contrat comm décembre 2022",null,null,null,"Totaux 2022"]
[null,"Hono Global","Marge WOW","Marge SJTC",null,"Hono Global","Marge WOW","Marge SJTC",null,"Hono Global","Marge WOW","Marge SJTC",null,"Hono Global","Marge WOW","Marge SJTC",null,"Hono Global","Marge WOW","Marge SJTC",null,"Hono Global","Marge WOW","Marge SJTC",null,"Hono Global","Marge WOW","Marge SJTC",null,"Hono Global","Marge WOW","Marge SJTC",null,"Hono Global","Marge WOW","Marge SJTC",null,"Hono Global","Marge WOW","Marge SJTC",null,"Hono Global","Marge WOW","Marge SJTC",null,"Hono Global","Marge WOW","Marge SJTC",null,"Hono Global","Marge WOW","Marge SJTC"]
[]
["Free-Lance",{"$f":"'janvier 2022'!M8","v":0},{"$f":"'janvier 2022'!N8","v":0},{"$f":"C12*($F32/100)","v":0},null,{"$f":"'février 2022'!M9","v":21240},{"$f":"'février 2022'!N9","v":4140},{"$f":"G12*($F32/100)","v":2484},null,{"$f":"'mars 2022'!M8","v":0},{"$f":"'mars 2022'!N8","v":0},{"$f":"K12*($F32/100)","v":0},null,{"$f":"'avril 2022'!M8","v":0},{"$f":"'avril 2022'!N8","v":0},{"$f":"O12*($F32/100)","v":0},null,{"$f":"'mai 2022'!M8","v":0},{"$f":"'mai 2022'!N8","v":0},{"$f":"S12*($F32/100)","v":0},null,{"$f":"'juin 2022'!M8","v":0},{"$f":"'juin 2022'!N8","v":0},{"$f":"W12*($F32/100)","v":0},null,{"$f":"'juillet 2022'!M8","v":0},{"$f":"'juillet 2022'!N8","v":0},{"$f":"AA12*($F32/100)","v":0},null,{"$f":"'août 2022'!M8","v":0},{"$f":"'août 2022'!N8","v":0},{"$f":"AE12*($F32/100)","v":0},null,{"$f":"'septembre 2022'!M8","v":0},{"$f":"'septembre 2022'!N8","v":0},{"$f":"AI12*($F32/100)","v":0},null,{"$f":"'octobre 2022'!M8","v":0},{"$f":"'octobre 2022'!N8","v":0},{"$f":"AM12*($F32/100)","v":0},null,{"$f":"'novembre 2022'!M8","v":0},{"$f":"'novembre 2022'!N8","v":0},{"$f":"AQ12*($F32/100)","v":0},null,{"$f":"'décembre 2022'!M8","v":0},{"$f":"'décembre 2022'!N8","v":0},{"$f":"AU12*($F32/100)","v":0},null,{"$f":"AT12+AP12+AL12+AH12+AD12+Z12+V12+R12+N12+J12+F12+B12","v":21240},{"$f":"AU12+AQ12+AM12+AI12+AE12+AA12+W12+S12+O12+K12+G12+C12","v":4140},{"$f":"AY12*($F32/100)","v":2484}]
["facture réalisées"]
[null,"Recapitulatif Exercice ",null,null,null,null,null,null,null,null,null,null,null,null,null,null,null,null,null,null,null,null,"Facture N°","Jour de mise  azéro",null,"Mois de mise a zéro","Jour de mise a zéro"]
[null,null,null,null,null,null,null,null,null,null,null,null,null,null,null,null,null,null,null,null,null,null,2,1,null,12,1]
[]
[null,"Prévisionnel /an",null,null,null,"Facturé/Payé WOW",null,null,null,null,null,"Facturé/en Attente WOW",null,null,null,null,null,"En cous Non Facturé WOW"]
[null,"CA Global","Marge WOW","Marge SJTC",null,"CA Global ",null,null,"Marge SJTC Facturé",null,null,"CA Global ",null,null,"Marge SJTC Facturé en Att",null,null,"CA Global ",null,null,"Marge SJTC Non Facturé"]
[]
["Free-Lance",{"$f":"AX12","v":21240},{"$f":"AY12","v":4140},{"$f":"AZ12","v":2484},null,null,null,null,null,null,null,null,null,null,null,null,null,{"$f":"AX5-L20-F20","v":21240},null,null,{"$f":"AZ5-O20-I20","v":2484}]
[null,null,null,null,null,"Hono Global"]
["Recrutement",null,null,null,null,null,null,null,null,null,null,null,null,null,null,null,null,{"$f":"AX7-L22-F22","v":28780},null,null,{"$f":"AZ7-O22-I22","v":23024}]
[]
[]
[]
[null,"Synthese Fin d'exercice Free-Lance"]
[]
[]
[null,"Prévisionnel /an",null,null,null,"Taux Accord Part SJTC",null,null,"Taux Variables Free-Lance",null,null,null,null,null,null,"Taux Recrutement"]
[null,"CA Global","Marge WOW","Marge SJTC",null,"Taux Facturation annuelle",null,null,"0/15K€","15/30K€","30/60K€","60/90K€","90/120K€",">120K€",null,"Si apport de WOW",null,"SI apport SJT-C"]
[]
[null,{"$f":"AX12","v":21240},{"$f":"AY12","v":4140},{"$f":"AZ12","v":2484},null,60,null,null,59,62,65,67,69,71,null,"Part WOW","SJT-C","Part WOW","SJT-C"]
[null,null,null,null,null,null,null,null,null,null,null,null,null,null,null,50,50,20,80]
[]
[null,"Total  Facturé exercice 2022",null,null,null,"Actualisation selon Taux Variables",null,null,"Solde après Taux Variables"]
[null,"CA Global",null,"Marge SJTC"]
[]
[null,{"$f":"F20","v":0},null,{"$f":"I20","v":0}]

{"sheet":"Factures Réalisées","index":1,"n_rows":4,"n_cols":8,"rows_kept":4,"cut":false,"hidden":false,"merged":[[1,1,1,7]]}
[]
[null,"Factures Enregistrées 2022"]
[null,"N° Facture","Date de facturation","Client","Payée","Date de paiement","Montant","Total Facturé"]
[null,null,null,null,null,null,""]

{"sheet":"Facturation","index":2,"n_rows":55,"n_cols":13,"rows_kept":55,"cut":false,"hidden":false,"merged":[[12,2,12,3],[12,4,12,5],[12,6,12,7],[2,2,2,4],[2,8,2,10],[4,1,9,4],[4,8,9,10],[10,5,10,7],[14,2,14,3],[14,4,14,5],[16,2,16,3],[16,4,16,5],[18,2,18,3],[18,4,18,5],[20,2,20,3],[20,4,20,5],[22,2,22,3],[22,4,22,5],[24,2,24,3],[24,4,24,5],[26,2,26,3],[26,4,26,5],[28,2,28,3],[28,4,28,5],[30,2,30,3],[30,4,30,5],[32,2,32,3],[32,4,32,5],[34,2,34,3],[34,4,34,5],[36,2,36,3],[36,4,36,5],[38,2,38,3],[38,4,38,5],[40,2,40,3],[40,4,40,5],[42,2,42,3],[42,4,42,5],[50,2,50,3],[50,4,50,5],[51,2,51,3],[51,4,51,5],[44,2,44,3],[44,4,44,5],[46,2,46,3],[46,4,46,5],[48,2,48,3],[48,4,48,5]]}
[null,null,null,null,null,null,null,null,null,null,null,null,0]
[]
[]
[]
[]
[]
[]
[]
[]
[]
[null,null,null,null,null,{"$f":"TODAY()","v":"2022-01-13"}]
[]
[null,"Date debut de contrat","Nom",null,"Prénom",null,"Facturation du .. au...",null,"Libéllé",null,"Montant "]
[]
[]
[]
[]
[]
[]
[]
[]
[]
[]
[]
[]
[]
[]
[]
[]
[]
[]
[]
[]
[]
[]
[]
[]
[]
[]
[]
[]
[]
[]
[]
[]
[]
[]
[]
[]
[]
[]
[]
[]
[]
[null,null,null,null,null,null,null,null,null,"Total",{"$f":"SUM(K15,K17,K19,K21,K23,K25,K27,K29,K32,K45,K47)","v":0}]

{"sheet":"calendrier","index":3,"n_rows":31,"n_cols":7,"rows_kept":31,"cut":false,"hidden":true,"merged":[]}
[1,"janvier",2021,"EURL",null,"Oui",1]
[2,"février",2022,"SARL",null,"Non",2]
[3,"mars",2023,"SAS",null,null,3]
[4,"avril",2024,"Micro",null,null,4]
[5,"mai",2025,"Portage",null,null,5]
[6,"juin",2026,"SASU",null,null,6]
[7,"juillet",2027,null,null,null,7]
[8,"août",2028,null,null,null,8]
[9,"septembre",2029,null,null,null,9]
[10,"octobre",2030,null,null,null,10]
[11,"novembre",2031,null,null,null,11]
[12,"decembre",2032,null,null,null,12]
[13,null,null,null,null,null,13]
[14,null,null,null,null,null,14]
[15,null,null,null,null,null,15]
[16,null,null,null,null,null,16]
[17,null,null,null,null,null,17]
[18,null,null,null,null,null,18]
[19,null,null,null,null,null,19]
[20,null,null,null,null,null,20]
[21,null,null,null,null,null,21]
[22,null,null,null,null,null,22]
[23,null,null,null,null,null,23]
[24,null,null,null,null,null,24]
[25,null,null,null,null,null,25]
[26]
[27]
[28]
[29]
[30]
[31]

{"sheet":"Contrat Modele","index":4,"n_rows":18,"n_cols":18,"rows_kept":18,"cut":false,"hidden":true,"merged":[[4,16,4,17],[1,1,1,17],[3,1,3,2],[3,4,3,5],[3,7,3,8],[3,10,3,11],[3,13,3,14],[3,16,3,17],[4,1,4,2],[4,4,4,5],[4,7,4,8],[4,10,4,11],[4,13,4,14],[8,16,8,17],[6,1,6,17],[7,1,7,2],[7,4,7,5],[7,7,7,8],[7,10,7,11],[7,13,7,14],[8,1,8,2],[8,4,8,5],[8,7,8,8],[8,10,8,11],[8,13,8,14],[10,16,10,17],[9,1,9,2],[9,4,9,5],[9,7,9,8],[9,10,9,11],[9,13,9,14],[9,16,9,17],[10,1,10,2],[10,4,10,5],[10,7,10,8],[10,10,10,11],[10,13,10,14],[11,1,11,17],[12,1,12,17],[13,1,13,2],[13,4,13,5],[13,7,13,8],[13,10,13,11],[13,13,13,14],[13,16,13,17],[20,1,20,2],[14,1,14,2],[14,4,14,5],[14,7,14,8],[14,10,14,11],[15,1,15,17],[16,1,16,17],[17,1,17,2],[17,4,17,5],[18,1,18,2],[14,13,14,14],[14,16,14,17],[34,1,34,2],[22,1,22,2],[24,1,24,2],[26,1,26,2],[28,1,28,2],[30,1,30,2],[32,1,32,2]]}
[]
[null,"FICHE CONTRAT …..."]
[]
[null,"Nom",null,null,"Prenom",null,null,"Contact",null,null,"Mail",null,null,"Statut",null,null,"Kbis"]
[]
[]
[null,"Contrat en cours"]
[null,"Date début de contrat",null,null,"Date de fin de contrat",null,null,"Prév Nbre/Jrs/Mois",null,null,"Prév Nbre Mois",null,null,"Prév Nbre/Jrs/Contrat"]
[]
[null,"TJM Contrat",null,null,"TJM Vente",null,null," Prév CA Global",null,null,"Marge Globale",null,null,"Prév Marge SJT-C",null,null,"Marge"]
[]
[]
[null,"Visibilité Contrat"]
[null,"Visi Fin Contrat",null,null,"Visi Nbre Mois",null,null,"Visi Nbre Jours",null,null,"Visi CA Global",null,null,"Visi Marge Globale",null,null,"Visi Marge SJT-C"]
[]
[]
[null,"Facturation"]
[null,"N° FAC",null,null,"Période",null,null,"Nb/jrs effectués","TJM Vente",null,"Nb/Jrs facturés","CA Global",null,"Ma WOW","Ma SJT-C",null,"Envoyée","Payée"]

{"sheet":"Contrat DEJAX","index":5,"n_rows":18,"n_cols":18,"rows_kept":18,"cut":false,"hidden":true,"merged":[[34,1,34,2],[22,1,22,2],[24,1,24,2],[26,1,26,2],[28,1,28,2],[30,1,30,2],[32,1,32,2],[20,1,20,2],[14,1,14,2],[14,4,14,5],[14,7,14,8],[14,10,14,11],[15,1,15,17],[16,1,16,17],[17,1,17,2],[17,4,17,5],[18,1,18,2],[14,13,14,14],[14,16,14,17],[11,1,11,17],[12,1,12,17],[13,1,13,2],[13,4,13,5],[13,7,13,8],[13,10,13,11],[13,13,13,14],[13,16,13,17],[10,16,10,17],[9,1,9,2],[9,4,9,5],[9,7,9,8],[9,10,9,11],[9,13,9,14],[9,16,9,17],[10,1,10,2],[10,4,10,5],[10,7,10,8],[10,10,10,11],[10,13,10,14],[8,16,8,17],[6,1,6,17],[7,1,7,2],[7,4,7,5],[7,7,7,8],[7,10,7,11],[7,13,7,14],[8,1,8,2],[8,4,8,5],[8,7,8,8],[8,10,8,11],[8,13,8,14],[4,16,4,17],[1,1,1,17],[3,1,3,2],[3,4,3,5],[3,7,3,8],[3,10,3,11],[3,13,3,14],[3,16,3,17],[4,1,4,2],[4,4,4,5],[4,7,4,8],[4,10,4,11],[4,13,4,14]]}
[]
[null,"FICHE CONTRAT DEJAX Martin"]
[]
[null,"Nom",null,null,"Prenom",null,null,"Contact",null,null,"Mail",null,null,"Statut",null,null,"Kbis"]
[null,"DEJAX",null,null,"Martin",null,null,"06 49 32 45 56",null,null,"martin.dejax@gmail.com",null,null,"Micro"]
[]
[null,"Contrat en cours"]
[null,"Date début de contrat",null,null,"Date de fin de contrat",null,null,"Prév Nbre/Jrs/Mois",null,null,"Prév Nbre Mois",null,null,"Prév Nbre/Jrs/Contrat"]
[null,"2022-01-02",null,null,"31-2-2022",null,null,18,null,null,1,null,null,18]
[null,"TJM Contrat",null,null,"TJM Vente",null,null," Prév CA Global",null,null,"Marge Globale",null,null,"Prév Marge SJT-C",null,null,"Marge"]
[null,350,null,null,480,null,null,8640,null,null,2340,null,null,1404,null,null,130]
[]
[null,"Visibilité Contrat"]
[null,"Visi Fin Contrat",null,null,"Visi Nbre Mois",null,null,"Visi Nbre Jours",null,null,"Visi CA Global",null,null,"Visi Marge Globale",null,null,"Visi Marge SJT-C"]
[null,"mars 2022",null,null,"2",null,null,"36",null,null,17280,null,null,4680,null,null,2808]
[]
[null,"Facturation"]
[null,"N° FAC",null,null,"Période",null,null,"Nb/jrs effectués","TJM Vente",null,"Nb/Jrs facturés","CA Global",null,"Ma WOW","Ma SJT-C",null,"Envoyée","Payée"]

{"sheet":"Contrat BESOMBES","index":6,"n_rows":18,"n_cols":18,"rows_kept":18,"cut":false,"hidden":true,"merged":[[34,1,34,2],[22,1,22,2],[24,1,24,2],[26,1,26,2],[28,1,28,2],[30,1,30,2],[32,1,32,2],[20,1,20,2],[14,1,14,2],[14,4,14,5],[14,7,14,8],[14,10,14,11],[15,1,15,17],[16,1,16,17],[17,1,17,2],[17,4,17,5],[18,1,18,2],[14,13,14,14],[14,16,14,17],[11,1,11,17],[12,1,12,17],[13,1,13,2],[13,4,13,5],[13,7,13,8],[13,10,13,11],[13,13,13,14],[13,16,13,17],[10,16,10,17],[9,1,9,2],[9,4,9,5],[9,7,9,8],[9,10,9,11],[9,13,9,14],[9,16,9,17],[10,1,10,2],[10,4,10,5],[10,7,10,8],[10,10,10,11],[10,13,10,14],[8,16,8,17],[6,1,6,17],[7,1,7,2],[7,4,7,5],[7,7,7,8],[7,10,7,11],[7,13,7,14],[8,1,8,2],[8,4,8,5],[8,7,8,8],[8,10,8,11],[8,13,8,14],[4,16,4,17],[1,1,1,17],[3,1,3,2],[3,4,3,5],[3,7,3,8],[3,10,3,11],[3,13,3,14],[3,16,3,17],[4,1,4,2],[4,4,4,5],[4,7,4,8],[4,10,4,11],[4,13,4,14]]}
[]
[null,"FICHE CONTRAT BESOMBES Séverine"]
[]
[null,"Nom",null,null,"Prenom",null,null,"Contact",null,null,"Mail",null,null,"Statut",null,null,"Kbis"]
[null,"BESOMBES",null,null,"Séverine",null,null,"06.83.76.42.17",null,null,"@",null,null,"SAS"]
[]
[null,"Contrat en cours"]
[null,"Date début de contrat",null,null,"Date de fin de contrat",null,null,"Prév Nbre/Jrs/Mois",null,null,"Prév Nbre Mois",null,null,"Prév Nbre/Jrs/Contrat"]
[null,"2022-01-02",null,null,"31-2-2022",null,null,18,null,null,1,null,null,18]
[null,"TJM Contrat",null,null,"TJM Vente",null,null," Prév CA Global",null,null,"Marge Globale",null,null,"Prév Marge SJT-C",null,null,"Marge"]
[null,600,null,null,700,null,null,12600,null,null,1800,null,null,1080,null,null,100]
[]
[null,"Visibilité Contrat"]
[null,"Visi Fin Contrat",null,null,"Visi Nbre Mois",null,null,"Visi Nbre Jours",null,null,"Visi CA Global",null,null,"Visi Marge Globale",null,null,"Visi Marge SJT-C"]
[null,"mars 2022",null,null,"2",null,null,"36",null,null,25200,null,null,3600,null,null,2160]
[]
[null,"Facturation"]
[null,"N° FAC",null,null,"Période",null,null,"Nb/jrs effectués","TJM Vente",null,"Nb/Jrs facturés","CA Global",null,"Ma WOW","Ma SJT-C",null,"Envoyée","Payée"]

{"sheet":"janvier 2022","index":7,"n_rows":13,"n_cols":27,"rows_kept":13,"cut":false,"hidden":false,"merged":[[9,5,9,6],[9,8,9,9],[3,1,3,26],[8,1,8,26],[1,1,1,26],[4,1,4,7],[4,8,4,15],[4,16,4,20],[4,21,4,23],[4,24,4,26]]}
[]
[null,"janvier 2022"]
[]
[null,"Free-lance"]
[null,"Collaborateur",null,null,null,null,null,null,"Contrat",null,null,null,null,null,null,null,"Client",null,null,null,null,"Time Sheet",null,null,"SYNTHESE"]
["NJE","Nom","Prénom","Téléphone","Nbre de Jours ","TJM Achat","Nv Contrat ?","TJM Vente","Marge","Durée de contrat","Nb Jours/Prév/mois ","Nb Jours/ Prév Contrat","CA Global Prév","Marge Globale Prév","Début de Contrat","Fin de Contrat ","Nom","Prenom","Societé","Telephone","Mail","Nb Jours Prévus","Nb Jours Restants Contrat","Nb Jours janvier 2022 Facturés","CA janvier 2022","Marge Globale WOW","Marge SJTC"]
[]
[null,null,null,null,null,null,null,null,null,null,null,"Totaux",null,null,null,null,null,null,null,null,null,null,null,"Totaux Facturés janvier 2022"]
[null,"Recrutement"]
["Oui","Nom","Prénom","Telephone","Mail","Apport WOW",null,"Préavis","Salaire Actuel",null,"Prétention","Salaire Embauche","% Honoraire","% WOW Oui","% WOW Non","Démarrage","Honoraire WOW Globale","PART WOW","Marge SJTC"]
[]
[]
[null,null,null,null,null,null,null,null,null,null,null,null,null,null,null,null,"To WOW Globale","To Part WOW","To Marge SJTC"]

{"sheet":"février 2022","index":8,"n_rows":16,"n_cols":27,"rows_kept":16,"cut":false,"hidden":false,"merged":[[10,5,10,6],[10,8,10,9],[3,1,3,26],[9,1,9,26],[1,1,1,26],[4,1,4,7],[4,8,4,15],[4,16,4,20],[4,21,4,23],[4,24,4,26]]}
[]
[null,"février 2022"]
[]
[null,"Free-lance"]
[null,"Collaborateur",null,null,null,null,null,null,"Contrat",null,null,null,null,null,null,null,"Client",null,null,null,null,"Time Sheet",null,null,"SYNTHESE"]
["NJE","Nom","Prénom","Téléphone","Nbre de Jours ","TJM Achat","Nv Contrat ?","TJM Vente","Marge","Durée de contrat","Nb Jours/Prév/mois ","Nb Jours/ Prév Contrat","CA Global Prév","Marge Globale Prév","Début de Contrat","Fin de Contrat ","Nom","Prenom","Societé","Telephone","Mail","Nb Jours Prévus","Nb Jours Restants Contrat","Nb Jours février 2022 Facturés","CA février 2022","Marge Globale WOW","Marge SJTC"]
[null,"d","e",6,18,600,"Oui",700,100,1,18,18,12600,1800,"2022-01-02","31-2-2022","","","tutuuuu","","",null,0,18,12600,1800,1080]
[null,"e","f",8,18,350,"Oui",480,130,1,18,18,8640,2340,"2022-01-02","31-2-2022","de","","tutu","","","18",0,18,8640,2340,1404]
[null,null,null,null,null,null,null,null,null,null,null,"Totaux",21240,4140,null,null,null,null,null,null,null,null,null,"Totaux Facturés février 2022",21240,4140,2484]
[null,"Recrutement"]
["Oui","Nom","Prénom","Telephone","Mail","Apport WOW",null,"Préavis","Salaire Actuel",null,"Prétention","Salaire Embauche","% Honoraire","% WOW Oui","% WOW Non","Démarrage","Honoraire WOW Globale","PART WOW","Marge SJTC"]
[null,"TH","DE","07","@@","Non",null,"1 Mois","58000",null,"60000","59500","20",20,null,"2022-01-02",11900,2380,9520]
[null,"de","th","06","@","Non",null,"1 Mois","45000",null,"49000","47000","16",20,null,"2022-01-02",7520,1504,6016]
[null,"de","th","06","@","Non",null,"1 Mois","56000",null,"59000","58500","16",20,null,"2022-01-02",9360,1872,7488]
[null,null,null,null,null,null,null,null,null,null,null,null,null,null,null,null,28780,5756,23024]
[null,null,null,null,null,null,null,null,null,null,null,null,null,null,null,null,"To WOW Globale","To Part WOW","To Marge SJTC"]

{"sheet":"mars 2022","index":9,"n_rows":13,"n_cols":27,"rows_kept":13,"cut":false,"hidden":false,"merged":[[9,5,9,6],[9,8,9,9],[3,1,3,26],[8,1,8,26],[1,1,1,26],[4,1,4,7],[4,8,4,15],[4,16,4,20],[4,21,4,23],[4,24,4,26]]}
[]
[null,"mars 2022"]
[]
[null,"Free-lance"]
[null,"Collaborateur",null,null,null,null,null,null,"Contrat",null,null,null,null,null,null,null,"Client",null,null,null,null,"Time Sheet",null,null,"SYNTHESE"]
["NJE","Nom","Prénom","Téléphone","Nbre de Jours ","TJM Achat","Nv Contrat ?","TJM Vente","Marge","Durée de contrat","Nb Jours/Prév/mois ","Nb Jours/ Prév Contrat","CA Global Prév","Marge Globale Prév","Début de Contrat","Fin de Contrat ","Nom","Prenom","Societé","Telephone","Mail","Nb Jours Prévus","Nb Jours Restants Contrat","Nb Jours mars 2022 Facturés","CA mars 2022","Marge Globale WOW","Marge SJTC"]
[]
[null,null,null,null,null,null,null,null,null,null,null,"Totaux",null,null,null,null,null,null,null,null,null,null,null,"Totaux Facturés mars 2022"]
[null,"Recrutement"]
["Oui","Nom","Prénom","Telephone","Mail","Apport WOW",null,"Préavis","Salaire Actuel",null,"Prétention","Salaire Embauche","% Honoraire","% WOW Oui","% WOW Non","Démarrage","Honoraire WOW Globale","PART WOW","Marge SJTC"]
[]
[]
[null,null,null,null,null,null,null,null,null,null,null,null,null,null,null,null,"To WOW Globale","To Part WOW","To Marge SJTC"]

{"sheet":"avril 2022","index":10,"n_rows":13,"n_cols":27,"rows_kept":13,"cut":false,"hidden":false,"merged":[[9,5,9,6],[9,8,9,9],[3,1,3,26],[8,1,8,26],[1,1,1,26],[4,1,4,7],[4,8,4,15],[4,16,4,20],[4,21,4,23],[4,24,4,26]]}
[]
[null,"avril 2022"]
[]
[null,"Free-lance"]
[null,"Collaborateur",null,null,null,null,null,null,"Contrat",null,null,null,null,null,null,null,"Client",null,null,null,null,"Time Sheet",null,null,"SYNTHESE"]
["NJE","Nom","Prénom","Téléphone","Nbre de Jours ","TJM Achat","Nv Contrat ?","TJM Vente","Marge","Durée de contrat","Nb Jours/Prév/mois ","Nb Jours/ Prév Contrat","CA Global Prév","Marge Globale Prév","Début de Contrat","Fin de Contrat ","Nom","Prenom","Societé","Telephone","Mail","Nb Jours Prévus","Nb Jours Restants Contrat","Nb Jours avril 2022 Facturés","CA avril 2022","Marge Globale WOW","Marge SJTC"]
[]
[null,null,null,null,null,null,null,null,null,null,null,"Totaux",null,null,null,null,null,null,null,null,null,null,null,"Totaux Facturés avril 2022"]
[null,"Recrutement"]
[null,"Nom","Prénom","Telephone","Mail","Apport WOW",null,"Préavis","Salaire Actuel",null,"Prétention","Salaire Embauche","% Honoraire","% WOW Oui","% WOW Non","Démarrage","Honoraire WOW Globale","PART WOW","Marge SJTC"]
[]
[]
[null,null,null,null,null,null,null,null,null,null,null,null,null,null,null,null,"To WOW Globale","To Part WOW","To Marge SJTC"]

{"sheet":"mai 2022","index":11,"n_rows":13,"n_cols":27,"rows_kept":13,"cut":false,"hidden":false,"merged":[[9,5,9,6],[9,8,9,9],[3,1,3,26],[8,1,8,26],[1,1,1,26],[4,1,4,7],[4,8,4,15],[4,16,4,20],[4,21,4,23],[4,24,4,26]]}
[]
[null,"mai 2022"]
[]
[null,"Free-lance"]
[null,"Collaborateur",null,null,null,null,null,null,"Contrat",null,null,null,null,null,null,null,"Client",null,null,null,null,"Time Sheet",null,null,"SYNTHESE"]
["NJE","Nom","Prénom","Téléphone","Nbre de Jours ","TJM Achat","Nv Contrat ?","TJM Vente","Marge","Durée de contrat","Nb Jours/Prév/mois ","Nb Jours/ Prév Contrat","CA Global Prév","Marge Globale Prév","Début de Contrat","Fin de Contrat ","Nom","Prenom","Societé","Telephone","Mail","Nb Jours Prévus","Nb Jours Restants Contrat","Nb Jours mai 2022 Facturés","CA mai 2022","Marge Globale WOW","Marge SJTC"]
[]
[null,null,null,null,null,null,null,null,null,null,null,"Totaux",null,null,null,null,null,null,null,null,null,null,null,"Totaux Facturés mai 2022"]
[null,"Recrutement"]
[null,"Nom","Prénom","Telephone","Mail","Apport WOW",null,"Préavis","Salaire Actuel",null,"Prétention","Salaire Embauche","% Honoraire","% WOW Oui","% WOW Non","Démarrage","Honoraire WOW Globale","PART WOW","Marge SJTC"]
[]
[]
[null,null,null,null,null,null,null,null,null,null,null,null,null,null,null,null,"To WOW Globale","To Part WOW","To Marge SJTC"]

{"sheet":"juin 2022","index":12,"n_rows":13,"n_cols":27,"rows_kept":13,"cut":false,"hidden":false,"merged":[[9,5,9,6],[9,8,9,9],[3,1,3,26],[8,1,8,26],[1,1,1,26],[4,1,4,7],[4,8,4,15],[4,16,4,20],[4,21,4,23],[4,24,4,26]]}
[]
[null,"juin 2022"]
[]
[null,"Free-lance"]
[null,"Collaborateur",null,null,null,null,null,null,"Contrat",null,null,null,null,null,null,null,"Client",null,null,null,null,"Time Sheet",null,null,"SYNTHESE"]
["NJE","Nom","Prénom","Téléphone","Nbre de Jours ","TJM Achat","Nv Contrat ?","TJM Vente","Marge","Durée de contrat","Nb Jours/Prév/mois ","Nb Jours/ Prév Contrat","CA Global Prév","Marge Globale Prév","Début de Contrat","Fin de Contrat ","Nom","Prenom","Societé","Telephone","Mail","Nb Jours Prévus","Nb Jours Restants Contrat","Nb Jours juin 2022 Facturés","CA juin 2022","Marge Globale WOW","Marge SJTC"]
[]
[null,null,null,null,null,null,null,null,null,null,null,"Totaux",null,null,null,null,null,null,null,null,null,null,null,"Totaux Facturés juin 2022"]
[null,"Recrutement"]
[null,"Nom","Prénom","Telephone","Mail","Apport WOW",null,"Préavis","Salaire Actuel",null,"Prétention","Salaire Embauche","% Honoraire","% WOW Oui","% WOW Non","Démarrage","Honoraire WOW Globale","PART WOW","Marge SJTC"]
[]
[]
[null,null,null,null,null,null,null,null,null,null,null,null,null,null,null,null,"To WOW Globale","To Part WOW","To Marge SJTC"]

{"sheet":"juillet 2022","index":13,"n_rows":13,"n_cols":27,"rows_kept":13,"cut":false,"hidden":false,"merged":[[9,5,9,6],[9,8,9,9],[3,1,3,26],[8,1,8,26],[1,1,1,26],[4,1,4,7],[4,8,4,15],[4,16,4,20],[4,21,4,23],[4,24,4,26]]}
[]
[null,"juillet 2022"]
[]
[null,"Free-lance"]
[null,"Collaborateur",null,null,null,null,null,null,"Contrat",null,null,null,null,null,null,null,"Client",null,null,null,null,"Time Sheet",null,null,"SYNTHESE"]
["NJE","Nom","Prénom","Téléphone","Nbre de Jours ","TJM Achat","Nv Contrat ?","TJM Vente","Marge","Durée de contrat","Nb Jours/Prév/mois ","Nb Jours/ Prév Contrat","CA Global Prév","Marge Globale Prév","Début de Contrat","Fin de Contrat ","Nom","Prenom","Societé","Telephone","Mail","Nb Jours Prévus","Nb Jours Restants Contrat","Nb Jours juillet 2022 Facturés","CA juillet 2022","Marge Globale WOW","Marge SJTC"]
[]
[null,null,null,null,null,null,null,null,null,null,null,"Totaux",null,null,null,null,null,null,null,null,null,null,null,"Totaux Facturés juillet 2022"]
[null,"Recrutement"]
[null,"Nom","Prénom","Telephone","Mail","Apport WOW",null,"Préavis","Salaire Actuel",null,"Prétention","Salaire Embauche","% Honoraire","% WOW Oui","% WOW Non","Démarrage","Honoraire WOW Globale","PART WOW","Marge SJTC"]
[]
[]
[null,null,null,null,null,null,null,null,null,null,null,null,null,null,null,null,"To WOW Globale","To Part WOW","To Marge SJTC"]

{"sheet":"août 2022","index":14,"n_rows":13,"n_cols":27,"rows_kept":13,"cut":false,"hidden":false,"merged":[[9,5,9,6],[9,8,9,9],[3,1,3,26],[8,1,8,26],[1,1,1,26],[4,1,4,7],[4,8,4,15],[4,16,4,20],[4,21,4,23],[4,24,4,26]]}
[]
[null,"août 2022"]
[]
[null,"Free-lance"]
[null,"Collaborateur",null,null,null,null,null,null,"Contrat",null,null,null,null,null,null,null,"Client",null,null,null,null,"Time Sheet",null,null,"SYNTHESE"]
["NJE","Nom","Prénom","Téléphone","Nbre de Jours ","TJM Achat","Nv Contrat ?","TJM Vente","Marge","Durée de contrat","Nb Jours/Prév/mois ","Nb Jours/ Prév Contrat","CA Global Prév","Marge Globale Prév","Début de Contrat","Fin de Contrat ","Nom","Prenom","Societé","Telephone","Mail","Nb Jours Prévus","Nb Jours Restants Contrat","Nb Jours août 2022 Facturés","CA août 2022","Marge Globale WOW","Marge SJTC"]
[]
[null,null,null,null,null,null,null,null,null,null,null,"Totaux",null,null,null,null,null,null,null,null,null,null,null,"Totaux Facturés août 2022"]
[null,"Recrutement"]
[null,"Nom","Prénom","Telephone","Mail","Apport WOW",null,"Préavis","Salaire Actuel",null,"Prétention","Salaire Embauche","% Honoraire","% WOW Oui","% WOW Non","Démarrage","Honoraire WOW Globale","PART WOW","Marge SJTC"]
[]
[]
[null,null,null,null,null,null,null,null,null,null,null,null,null,null,null,null,"To WOW Globale","To Part WOW","To Marge SJTC"]

{"sheet":"septembre 2022","index":15,"n_rows":13,"n_cols":27,"rows_kept":13,"cut":false,"hidden":false,"merged":[[9,5,9,6],[9,8,9,9],[3,1,3,26],[8,1,8,26],[1,1,1,26],[4,1,4,7],[4,8,4,15],[4,16,4,20],[4,21,4,23],[4,24,4,26]]}
[]
[null,"septembre 2022"]
[]
[null,"Free-lance"]
[null,"Collaborateur",null,null,null,null,null,null,"Contrat",null,null,null,null,null,null,null,"Client",null,null,null,null,"Time Sheet",null,null,"SYNTHESE"]
["NJE","Nom","Prénom","Téléphone","Nbre de Jours ","TJM Achat","Nv Contrat ?","TJM Vente","Marge","Durée de contrat","Nb Jours/Prév/mois ","Nb Jours/ Prév Contrat","CA Global Prév","Marge Globale Prév","Début de Contrat","Fin de Contrat ","Nom","Prenom","Societé","Telephone","Mail","Nb Jours Prévus","Nb Jours Restants Contrat","Nb Jours septembre 2022 Facturés","CA septembre 2022","Marge Globale WOW","Marge SJTC"]
[]
[null,null,null,null,null,null,null,null,null,null,null,"Totaux",null,null,null,null,null,null,null,null,null,null,null,"Totaux Facturés septembre 2022"]
[null,"Recrutement"]
[null,"Nom","Prénom","Telephone","Mail","Apport WOW",null,"Préavis","Salaire Actuel",null,"Prétention","Salaire Embauche","% Honoraire","% WOW Oui","% WOW Non","Démarrage","Honoraire WOW Globale","PART WOW","Marge SJTC"]
[]
[]
[null,null,null,null,null,null,null,null,null,null,null,null,null,null,null,null,"To WOW Globale","To Part WOW","To Marge SJTC"]

{"sheet":"octobre 2022","index":16,"n_rows":13,"n_cols":27,"rows_kept":13,"cut":false,"hidden":false,"merged":[[9,5,9,6],[9,8,9,9],[3,1,3,26],[8,1,8,26],[1,1,1,26],[4,1,4,7],[4,8,4,15],[4,16,4,20],[4,21,4,23],[4,24,4,26]]}
[]
[null,"octobre 2022"]
[]
[null,"Free-lance"]
[null,"Collaborateur",null,null,null,null,null,null,"Contrat",null,null,null,null,null,null,null,"Client",null,null,null,null,"Time Sheet",null,null,"SYNTHESE"]
["NJE","Nom","Prénom","Téléphone","Nbre de Jours ","TJM Achat","Nv Contrat ?","TJM Vente","Marge","Durée de contrat","Nb Jours/Prév/mois ","Nb Jours/ Prév Contrat","CA Global Prév","Marge Globale Prév","Début de Contrat","Fin de Contrat ","Nom","Prenom","Societé","Telephone","Mail","Nb Jours Prévus","Nb Jours Restants Contrat","Nb Jours octobre 2022 Facturés","CA octobre 2022","Marge Globale WOW","Marge SJTC"]
[]
[null,null,null,null,null,null,null,null,null,null,null,"Totaux",null,null,null,null,null,null,null,null,null,null,null,"Totaux Facturés octobre 2022"]
[null,"Recrutement"]
[null,"Nom","Prénom","Telephone","Mail","Apport WOW",null,"Préavis","Salaire Actuel",null,"Prétention","Salaire Embauche","% Honoraire","% WOW Oui","% WOW Non","Démarrage","Honoraire WOW Globale","PART WOW","Marge SJTC"]
[]
[]
[null,null,null,null,null,null,null,null,null,null,null,null,null,null,null,null,"To WOW Globale","To Part WOW","To Marge SJTC"]

{"sheet":"novembre 2022","index":17,"n_rows":13,"n_cols":27,"rows_kept":13,"cut":false,"hidden":false,"merged":[[9,5,9,6],[9,8,9,9],[3,1,3,26],[8,1,8,26],[1,1,1,26],[4,1,4,7],[4,8,4,15],[4,16,4,20],[4,21,4,23],[4,24,4,26]]}
[]
[null,"novembre 2022"]
[]
[null,"Free-lance"]
[null,"Collaborateur",null,null,null,null,null,null,"Contrat",null,null,null,null,null,null,null,"Client",null,null,null,null,"Time Sheet",null,null,"SYNTHESE"]
["NJE","Nom","Prénom","Téléphone","Nbre de Jours ","TJM Achat","Nv Contrat ?","TJM Vente","Marge","Durée de contrat","Nb Jours/Prév/mois ","Nb Jours/ Prév Contrat","CA Global Prév","Marge Globale Prév","Début de Contrat","Fin de Contrat ","Nom","Prenom","Societé","Telephone","Mail","Nb Jours Prévus","Nb Jours Restants Contrat","Nb Jours novembre 2022 Facturés","CA novembre 2022","Marge Globale WOW","Marge SJTC"]
[]
[null,null,null,null,null,null,null,null,null,null,null,"Totaux",null,null,null,null,null,null,null,null,null,null,null,"Totaux Facturés novembre 2022"]
[null,"Recrutement"]
[null,"Nom","Prénom","Telephone","Mail","Apport WOW",null,"Préavis","Salaire Actuel",null,"Prétention","Salaire Embauche","% Honoraire","% WOW Oui","% WOW Non","Démarrage","Honoraire WOW Globale","PART WOW","Marge SJTC"]
[]
[]
[null,null,null,null,null,null,null,null,null,null,null,null,null,null,null,null,"To WOW Globale","To Part WOW","To Marge SJTC"]

{"sheet":"décembre 2022","index":18,"n_rows":13,"n_cols":27,"rows_kept":13,"cut":false,"hidden":false,"merged":[[9,5,9,6],[9,8,9,9],[3,1,3,26],[8,1,8,26],[1,1,1,26],[4,1,4,7],[4,8,4,15],[4,16,4,20],[4,21,4,23],[4,24,4,26]]}
[]
[null,"décembre 2022"]
[]
[null,"Free-lance"]
[null,"Collaborateur",null,null,null,null,null,null,"Contrat",null,null,null,null,null,null,null,"Client",null,null,null,null,"Time Sheet",null,null,"SYNTHESE"]
["NJE","Nom","Prénom","Téléphone","Nbre de Jours ","TJM Achat","Nv Contrat ?","TJM Vente","Marge","Durée de contrat","Nb Jours/Prév/mois ","Nb Jours/ Prév Contrat","CA Global Prév","Marge Globale Prév","Début de Contrat","Fin de Contrat ","Nom","Prenom","Societé","Telephone","Mail","Nb Jours Prévus","Nb Jours Restants Contrat","Nb Jours décembre 2022 Facturés","CA décembre 2022","Marge Globale WOW","Marge SJTC"]
[]
[null,null,null,null,null,null,null,null,null,null,null,"Totaux",null,null,null,null,null,null,null,null,null,null,null,"Totaux Facturés décembre 2022"]
[null,"Recrutement"]
[null,"Nom","Prénom","Telephone","Mail","Apport WOW",null,"Préavis","Salaire Actuel",null,"Prétention","Salaire Embauche","% Honoraire","% WOW Oui","% WOW Non","Démarrage","Honoraire WOW Globale","PART WOW","Marge SJTC"]
[]
[]
[null,null,null,null,null,null,null,null,null,null,null,null,null,null,null,null,"To WOW Globale","To Part WOW","To Marge SJTC"]